[Event "44th Chess Olympiad Open 2022"]
[Site "Chennai"]
[Date "2022.08.06"]
[Round "8.53"]
[White "Alhassadi, Yousef A."]
[Black "Cabezas Solano, David Alejandro"]
[Result "1-0"]
[WhiteElo "2068"]
[BlackElo "2196"]
[Annotator "RC"]
[PlyCount "103"]
[EventDate "2022.??.??"]
[TimeControl "60"]

1. e4 {[%emt 0:00:02]} c5 {[%emt 0:00:08]} 2. Nf3 {[%emt 0:00:06]} Nc6 {
[%emt 0:00:04]} 3. c3 {[%emt 0:00:05]} Nf6 {[%emt 0:00:11]} 4. e5 {[%emt 0:00:
00]} Nd5 {[%emt 0:00:06]} 5. d4 {[%emt 0:00:03]} cxd4 {[%emt 0:00:23]} 6. cxd4
{[%emt 0:00:04]} d6 {[%emt 0:00:10]} 7. Bc4 {[%emt 0:00:05]} e6 {[%emt 0:00:11]
} 8. Qe2 {[%emt 0:00:07]} dxe5 {[%emt 0:01:23]} 9. dxe5 {[%emt 0:00:05]} Bb4+ {
[%emt 0:03:04]} 10. Bd2 {[%emt 0:00:05]} O-O {[%emt 0:01:03]} 11. O-O {[%emt 0:
00:00]} Bxd2 {[%emt 0:03:09]} 12. Nbxd2 {[%emt 0:00:15]} Qc7 {[%emt 0:01:29]}
13. Rac1 {[%emt 0:14:29]} Nf4 {[%emt 0:02:52]} 14. Qe4 {[%emt 0:00:38]} Ng6 {
[%emt 0:00:07]} 15. Rfe1 {[%emt 0:13:31]} Rd8 {[%emt 0:07:00]} 16. Nb3 {
[%emt 0:00:57]} Qb6 {[%emt 0:04:05]} 17. h4 {[%emt 0:01:21]} Nf8 {[%emt 0:00:
00]} 18. h5 {[%emt 0:07:36]} h6 {[%emt 0:01:40]} 19. Rc3 {[%emt 0:01:18]} Ne7 {
[%emt 0:05:56]} 20. Nh4 {[%emt 0:12:38]} Nf5 {[%emt 0:06:43]} 21. Qf4 {[%emt 0:
00:00]} a5 {[%emt 0:01:15]} 22. a4 {[%emt 0:11:53]} Qb4 {[%emt 0:01:15]} 23.
Re4 {[%emt 0:04:19]} Qe7 {[%emt 0:04:24]} 24. Nxf5 {[%emt 0:00:38]} exf5 {
[%emt 0:00:03]} 25. Rd4 {[%emt 0:00:09]} Re8 {[%emt 0:13:22]} 26. Rd5 {[%emt 0:
00:00]} Be6 {[%emt 0:05:56]} 27. Rb5 {[%emt 0:01:33]} Red8 {[%emt 0:14:01]} 28.
Nd4 {[%emt 0:18:27]} Rd7 {[%emt 0:07:38]} 29. g3 {[%emt 0:05:58]} Rad8 {
[%emt 0:02:06]} 30. Nxf5 {[%emt 0:00:28]} Rd1+ {[%emt 0:00:20]} 31. Kg2 {
[%emt 0:01:02]} Qd7 {[%emt 0:01:01]} 32. Bxe6 {[%emt 0:00:53]} Nxe6 {[%emt 0:
00:00]} 33. Qg4 {[%emt 0:00:12]} Ng5 {[%emt 0:01:20]} 34. Ne3 {[%emt 0:00:16]}
Qxg4 {[%emt 0:02:54]} 35. Nxg4 {[%emt 0:00:03]} R8d2 {[%emt 0:01:40]} 36. Rxb7
{[%emt 0:00:25]} Rd8 {[%emt 0:02:45]} 37. Rc4 {[%emt 0:01:15]} Ne6 {[%emt 0:00:
00]} 38. Ne3 {[%emt 0:01:03]} R1d2 {[%emt 0:00:18]} 39. Nf5 {[%emt 0:00:15]}
Re2 {[%emt 0:01:15]} 40. Nd6 {[%emt 0:00:29]} Rf8 {[%emt 0:01:20]} 41. Ne4 {
[%emt 0:30:31]} Rd8 {[%emt 0:30:34]} 42. Kf3 {[%emt 0:00:47]} Re1 {[%emt 0:00:
00]} 43. Ra7 {[%emt 0:00:00]} Nd4+ {[%emt 0:00:00]} 44. Kf4 {[%emt 0:00:00]}
Re2 {[%emt 0:00:00]} 45. Rxa5 {[%emt 0:00:00]} Rxb2 {[%emt 0:00:00]} 46. Ra6 {
[%emt 0:00:00]} Ra2 {[%emt 0:00:00]} 47. Kg4 {[%emt 0:00:00]} Re2 {[%emt 0:00:
00]} 48. Nd6 {[%emt 0:00:00]} Nc2 {[%emt 0:00:00]} 49. Rac6 {[%emt 0:00:00]}
Ne1 {[%emt 0:00:00]} 50. f4 {[%emt 0:00:00]} Re3 {[%emt 0:00:00]} 51. Rc8 {
[%emt 0:00:00]} Rf8 {[%emt 0:00:00]} 52. Nf5 {[%emt 0:00:00]} 1-0

[Event "44th Chess Olympiad Open 2022"]
[Site "Chennai"]
[Date "2022.08.06"]
[Round "8.53"]
[White "Naser Eldean, Ahmed"]
[Black "Chinchilla Miranda, Eugenio"]
[Result "1-0"]
[WhiteElo "1941"]
[BlackElo "2206"]
[Annotator "RC"]
[PlyCount "158"]
[EventDate "2022.??.??"]
[TimeControl "60"]

1. d4 {[%emt 0:00:04]} d5 {[%emt 0:00:33]} 2. Nf3 {[%emt 0:00:07]} Nf6 {
[%emt 0:00:18]} 3. g3 {[%emt 0:00:11]} Bf5 {[%emt 0:04:18]} 4. Bg2 {[%emt 0:00:
00]} e6 {[%emt 0:00:13]} 5. O-O {[%emt 0:00:09]} Bd6 {[%emt 0:01:29]} 6. c4 {
[%emt 0:00:11]} c6 {[%emt 0:00:17]} 7. Nc3 {[%emt 0:00:35]} O-O {[%emt 0:05:22]
} 8. Qb3 {[%emt 0:00:18]} Qb6 {[%emt 0:00:50]} 9. c5 {[%emt 0:00:42]} Qxb3 {
[%emt 0:00:12]} 10. axb3 {[%emt 0:00:04]} Bc7 {[%emt 0:01:04]} 11. b4 {[%emt 0:
00:00]} Ne4 {[%emt 0:05:15]} 12. Bf4 {[%emt 0:18:00]} Bxf4 {[%emt 0:02:47]} 13.
gxf4 {[%emt 0:00:05]} Nd7 {[%emt 0:03:07]} 14. Ne5 {[%emt 0:01:23]} Rfd8 {
[%emt 0:03:00]} 15. Nb1 {[%emt 0:03:29]} a6 {[%emt 0:04:12]} 16. f3 {[%emt 0:
00:00]} Nef6 {[%emt 0:00:00]} 17. Nd2 {[%emt 0:04:19]} Ne8 {[%emt 0:03:57]} 18.
Nb3 {[%emt 0:01:36]} f6 {[%emt 0:02:10]} 19. Ng4 {[%emt 0:00:40]} Nc7 {[%emt 0:
00:00]} 20. Ne3 {[%emt 0:06:03]} Re8 {[%emt 0:02:00]} 21. Nxf5 {[%emt 0:03:07]}
exf5 {[%emt 0:00:06]} 22. Kf2 {[%emt 0:00:13]} Nb5 {[%emt 0:05:29]} 23. h4 {
[%emt 0:01:52]} g6 {[%emt 0:07:11]} 24. e3 {[%emt 0:01:15]} Re7 {[%emt 0:02:43]
} 25. Rfe1 {[%emt 0:01:37]} Rae8 {[%emt 0:00:00]} 26. Bf1 {[%emt 0:07:00]} Nf8
{[%emt 0:02:22]} 27. Bd3 {[%emt 0:04:07]} Ne6 {[%emt 0:11:56]} 28. Rg1 {
[%emt 0:03:48]} Nd8 {[%emt 0:00:56]} 29. Rae1 {[%emt 0:00:50]} Kf7 {[%emt 0:00:
00]} 30. h5 {[%emt 0:01:31]} Nc7 {[%emt 0:01:58]} 31. Na1 {[%emt 0:02:19]} Nde6
{[%emt 0:00:00]} 32. Nc2 {[%emt 0:02:51]} Rh8 {[%emt 0:03:16]} 33. Rg2 {
[%emt 0:07:42]} Ng7 {[%emt 0:02:45]} 34. Rh1 {[%emt 0:03:56]} Nxh5 {[%emt 0:00:
00]} 35. Rgh2 {[%emt 0:07:03]} Ke6 {[%emt 0:02:27]} 36. Na1 {[%emt 0:04:26]}
Ne8 {[%emt 0:01:05]} 37. Nb3 {[%emt 0:00:00]} Neg7 {[%emt 0:01:48]} 38. Na5 {
[%emt 0:00:13]} Kf7 {[%emt 0:00:00]} 39. Nb3 {[%emt 0:00:21]} Rhe8 {[%emt 0:00:
00]} 40. Na5 {[%emt 0:01:32]} Rxe3 {[%emt 0:00:20]} 41. Be4 {[%emt 0:33:17]}
R3xe4 {[%emt 0:04:39]} 42. fxe4 {[%emt 0:04:54]} Rxe4 {[%emt 0:16:26]} 43. Nxb7
{[%emt 0:00:29]} Rxd4 {[%emt 0:00:49]} 44. Nd8+ {[%emt 0:01:09]} Ke8 {[%emt 0:
00:00]} 45. Nxc6 {[%emt 0:00:17]} Rxf4+ {[%emt 0:00:18]} 46. Ke3 {[%emt 0:00:
00]} Ne6 {[%emt 0:07:14]} 47. Ra1 {[%emt 0:05:18]} Nc7 {[%emt 0:00:42]} 48. Kd3
{[%emt 0:00:00]} Rf3+ {[%emt 0:00:00]} 49. Kc2 {[%emt 0:00:00]} f4 {[%emt 0:00:
00]} 50. Re2+ {[%emt 0:00:00]} Kd7 {[%emt 0:00:00]} 51. Nb8+ {[%emt 0:00:00]}
Kc8 {[%emt 0:00:00]} 52. Nxa6 {[%emt 0:00:00]} Nb5 {[%emt 0:00:00]} 53. Re8+ {
[%emt 0:00:00]} Kd7 {[%emt 0:00:00]} 54. Rae1 {[%emt 0:00:00]} Nd4+ {[%emt 0:
00:00]} 55. Kb1 {[%emt 0:00:00]} Re3 {[%emt 0:00:00]} 56. R1xe3 {[%emt 0:00:00]
} fxe3 {[%emt 0:00:00]} 57. Rxe3 {[%emt 0:00:00]} Nf4 {[%emt 0:00:00]} 58. b5 {
[%emt 0:00:00]} Nxb5 {[%emt 0:00:00]} 59. Nb4 {[%emt 0:00:00]} h5 {[%emt 0:00:
00]} 60. c6+ {[%emt 0:04:38]} Kd6 {[%emt 0:00:43]} 61. Re8 {[%emt 0:00:13]} h4
{[%emt 0:02:38]} 62. Rd8+ {[%emt 0:00:25]} Kc5 {[%emt 0:02:09]} 63. Rb8 {
[%emt 0:01:57]} Ne6 {[%emt 0:00:04]} 64. Na6+ {[%emt 0:01:47]} Kxc6 {[%emt 0:
00:00]} 65. Nb4+ {[%emt 0:00:01]} Kc5 {[%emt 0:02:25]} 66. Na6+ {[%emt 0:00:01]
} Kd4 {[%emt 0:01:23]} 67. Rxb5 {[%emt 0:00:18]} g5 {[%emt 0:01:51]} 68. Rb8 {
[%emt 0:00:18]} h3 {[%emt 0:00:26]} 69. Rh8 {[%emt 0:01:18]} g4 {[%emt 0:00:05]
} 70. b4 {[%emt 0:00:18]} Kc4 {[%emt 0:00:31]} 71. Rh4 {[%emt 0:01:23]} f5 {
[%emt 0:00:19]} 72. Nb8 {[%emt 0:00:07]} Ng5 {[%emt 0:01:18]} 73. Nc6 {[%emt 0:
00:00]} Nf3 {[%emt 0:00:12]} 74. Rh5 {[%emt 0:00:18]} h2 {[%emt 0:00:37]} 75.
Ne7 {[%emt 0:00:27]} g3 {[%emt 0:00:54]} 76. Nxf5 {[%emt 0:00:08]} g2 {[%emt 0:
00:00]} 77. Ne3+ {[%emt 0:00:06]} Kxb4 {[%emt 0:00:07]} 78. Nxg2 {[%emt 0:00:
00]} Kc3 {[%emt 0:00:11]} 79. Ne3 {[%emt 0:01:36]} d4 {[%emt 0:01:43]} 1-0

[Event "44th Chess Olympiad Open 2022"]
[Site "Chennai"]
[Date "2022.08.06"]
[Round "8.54"]
[White "Zaibi, Amir"]
[Black "Beukes, Dante M"]
[Result "0-1"]
[WhiteElo "2398"]
[BlackElo "2234"]
[Annotator "TA"]
[PlyCount "164"]
[EventDate "2022.??.??"]
[TimeControl "60"]

{[%evp 16,164,10,8,18,-33,29,-12,2,-44,-29,-51,-33,-104,-100,-92,-74,-80,-70,
-93,-93,-93,-93,-99,-95,-102,-100,-102,-105,-125,-119,-138,-133,-147,-150,-233,
-233,-219,-220,-220,-220,-224,-222,-286,-283,-283,-273,-344,-342,-380,-141,
-141,-141,-144,-143,-150,-150,-152,-151,-153,-141,-154,-141,-149,-141,-141,
-127,-123,-122,-122,-122,-122,-122,-139,-139,-139,-139,-153,-122,-139,-139,
-139,-123,-139,-123,-139,-139,-266,-266,-266,-256,-266,-252,-266,-266,-266,
-266,-264,-264,-253,-263,-262,-247,-262,-221,-249,0,-228,0,-251,-215,-356,-357,
-357,-353,-357,-357,-342,-328,-345,-335,-314,-254,-257,-116,-680,-675,-676,
-654,-673,-673,-658,-625,-673,-672,-670,-664,-636,-598,-1144,-1137,-1112,-1088,
-1068,-1095,-1061,-1041,-991,-860,-686,-628]} 1. d4 {[%emt 0:00:02]} Nf6 {
[%emt 0:00:09]} 2. c4 {[%emt 0:00:05]} g6 {[%emt 0:00:04]} 3. g3 {[%emt 0:00:
00]} Bg7 {[%emt 0:00:04]} 4. Bg2 {[%emt 0:00:04]} O-O {[%emt 0:00:06]} 5. Nc3 {
[%emt 0:00:05]} d6 {[%emt 0:00:04]} 6. Nf3 {[%emt 0:00:12]} c6 {[%emt 0:00:04]}
7. O-O {[%emt 0:00:15]} Bf5 $1 {[%emt 0:00:08] is currently scoring better
than 7...Qa5.} 8. Nh4 {[%emt 0:02:35]} Be6 {[%emt 0:00:05]} 9. b3 {[%emt 0:05:
03]} d5 {[%emt 0:00:05] E62: King's Indian: Fianchetto: 6...c6 and Panno
Variation (6...Nc6) without ...a6.} 10. Rb1 {[%emt 0:03:21] [#]} (10. cxd5 $11
cxd5 11. Nf3) 10... Qd7 $146 {[%emt 0:10:30]} (10... dxc4 $15 11. bxc4 Bxc4) ({
Predecessor:} 10... Qc8 11. Ba3 Re8 12. cxd5 Nxd5 13. Bb2 Nxc3 14. Bxc3 Bh3 15.
Nf3 Bxg2 16. Kxg2 Qf5 17. Rc1 {½-½ (25) Javakhishvili,L (2478) -Paehtz,E 
(2464) Erfurt 2014}) 11. Qd3 {[%emt 0:23:05]} Rd8 {[%emt 0:04:22] The position
is equal.} 12. c5 {[%emt 0:08:54]} (12. Rd1 $11) 12... Ne4 $15 {[%emt 0:06:18]}
13. f4 {[%emt 0:02:08] Prevents g5.} Bf6 {[%emt 0:11:24]} 14. e3 {[%emt 0:10:
43]} ({Better is} 14. Bb2 $15) 14... Bxh4 {[%emt 0:01:26]} 15. gxh4 {[%emt 0:
00:04]} Nf6 {[%emt 0:00:06] Pair of Knights!} 16. Rb2 {[%emt 0:00:00]} Bh3 {
[%emt 0:01:46]} 17. Rf3 {[%emt 0:10:42]} Bf5 {[%emt 0:06:06]} 18. Qf1 {[%emt 0:
00:23]} Qe6 {[%emt 0:00:13]} 19. Ne2 {[%emt 0:07:50]} Nh5 {[%emt 0:09:21]} 20.
Ng3 {[%emt 0:03:06]} Nxg3 {[%emt 0:00:10]} 21. Rxg3 {[%emt 0:00:23]} Nd7 {
[%emt 0:02:35]} 22. h5 {[%emt 0:00:40]} Nf6 {[%emt 0:00:00]} 23. hxg6 {[%emt 0:
03:44]} hxg6 {[%emt 0:01:10]} 24. Bd2 {[%emt 0:00:15] [#]} Kg7 $1 {[%emt 0:02:
46]} ({Worse is} 24... Ne4 25. Bxe4 Qxe4 26. Ba5 $17) 25. Ba5 {[%emt 0:00:08]}
(25. Bh3 $17) 25... Rh8 $19 {[%emt 0:05:45]} 26. Bc7 {[%emt 0:11:06]} Nh5 {
[%emt 0:04:07]} 27. Rf3 {[%emt 0:00:06]} Rac8 {[%emt 0:00:00]} 28. Ba5 {
[%emt 0:00:15]} Nf6 {[%emt 0:05:22]} 29. Bd2 {[%emt 0:01:13]} Rh7 {[%emt 0:01:
48]} 30. Be1 {[%emt 0:01:33]} Ng4 {[%emt 0:06:29][%csl Ye3,Yh2]} 31. Bh1 {
[%emt 0:03:02]} Rch8 {[%emt 0:03:30]} ({Inferior is} 31... Nxe3 32. Qe2 Ng4 33.
Qxe6 Bxe6 34. b4 $17) 32. Bg3 {[%emt 0:01:16]} Nxe3 $2 {[%emt 0:00:00]} (32...
Be4 $19 33. f5 Bxf5 34. Rxf5 Qxf5 35. Qxf5 gxf5) 33. Qe2 $17 {[%emt 0:00:07]}
Ng4 {[%emt 0:00:42][%cal Ye3g4,Yg4h6,Yh6f5] [#] Hoping for ...Nxh2.0x0.
00198a4f815ddp-1022s more active pieces.} 34. Qxe6 {[%emt 0:00:03]} Bxe6 {
[%emt 0:01:13]} 35. b4 {[%emt 0:01:03]} a6 {[%emt 0:00:00]} 36. a4 {[%emt 0:00:
39]} Nh6 {[%emt 0:00:20]} 37. Rd3 {[%emt 0:00:44]} Nf5 {[%emt 0:01:10]} 38. Bg2
{[%emt 0:01:18]} Ra8 {[%emt 0:00:44]} 39. Rd1 {[%emt 0:00:49]} Rhh8 {[%emt 0:
04:53]} 40. Kf2 {[%emt 0:00:05]} Rhb8 {[%emt 0:00:00]} 41. Bh3 {[%emt 0:05:02]}
Nxg3 {[%emt 0:04:44]} 42. Kxg3 {[%emt 0:00:23]} Bxh3 {[%emt 0:00:09]} 43. Kxh3
{[%emt 0:00:03] Endgame KRR-KRR} Rh8+ {[%emt 0:02:27]} 44. Kg3 {[%emt 0:02:46]}
Rh5 {[%emt 0:00:49]} 45. h4 {[%emt 0:00:09]} Rah8 {[%emt 0:00:27]} 46. Rh1 {
[%emt 0:00:39]} e6 {[%emt 0:00:00]} 47. Rbh2 {[%emt 0:04:56]} Kf6 {[%emt 0:00:
37]} 48. Re1 {[%emt 0:02:01]} Ke7 {[%emt 0:00:52]} 49. Re3 {[%emt 0:05:33]} Kd7
{[%emt 0:01:08]} 50. Re5 {[%emt 0:01:18]} Rb8 {[%emt 0:04:37]} 51. a5 {[%emt 0:
01:20]} (51. Ree2 $17 {was called for.}) 51... Rbh8 $19 {[%emt 0:00:27]} 52.
Rg5 {[%emt 0:00:10]} R8h6 {[%emt 0:02:30]} 53. Rg4 {[%emt 0:00:36]} Ke7 {
[%emt 0:00:19]} 54. Rh3 {[%emt 0:01:13]} Kf8 {[%emt 0:02:02]} 55. Rh2 {[%emt 0:
00:10]} Kg7 {[%emt 0:00:00]} 56. Rh1 {[%emt 0:01:41]} f6 {[%emt 0:01:01]} 57.
Rh2 {[%emt 0:00:48]} Rh8 {[%emt 0:00:31]} 58. Rh1 {[%emt 0:00:53]} Kf7 {
[%emt 0:02:27]} 59. Rh2 {[%emt 0:00:35]} Rg8 {[%emt 0:00:59]} 60. Rf2 {[%emt 0:
00:36]} Rgh8 {[%emt 0:00:00] And now ...f5 would win.} 61. Rh2 $1 {[%emt 0:00:
04]} Kg7 {[%emt 0:01:12]} 62. Rh1 $1 {[%emt 0:00:14]} g5 {[%emt 0:01:42] White
must now prevent ...Rxh4.} 63. fxg5 {[%emt 0:00:27]} (63. Re1 $142 Rxh4 64.
fxg5 Rh3+ 65. Kf4) 63... f5 {[%emt 0:00:21]} 64. Rf4 {[%emt 0:00:56]} Rxg5+ $1
{[%emt 0:00:07]} 65. Kf3 {[%emt 0:00:57]} Rgh5 {[%emt 0:00:26]} 66. Rg1+ {
[%emt 0:01:32]} Kf6 {[%emt 0:00:00]} 67. Rgg4 {[%emt 0:01:04]} Kf7 {[%emt 0:00:
43]} 68. Kg3 {[%emt 0:01:05]} R5h6 {[%emt 0:01:34]} 69. Rf1 {[%emt 0:01:11]}
Rg6 {[%emt 0:00:00]} (69... R8h7 $19 {and Black stays clearly on top. ...Ke7
is the strong threat.} 70. Rff4 Rh5) 70. Rg5 $2 {[%emt 0:02:35] Loses the game.
} (70. Rxg6 $17 Kxg6 71. Rh1) 70... Rxg5+ {[%emt 0:00:00] Black is clearly
winning.} 71. hxg5 {[%emt 0:00:00] KR-KR} Rh5 {[%emt 0:00:00]} 72. Kf4 {
[%emt 0:01:06]} Rh4+ {[%emt 0:00:00]} 73. Ke3 {[%emt 0:00:45]} Kg6 {[%emt 0:00:
15]} 74. Rg1 {[%emt 0:00:25]} Re4+ {[%emt 0:00:09]} 75. Kd3 {[%emt 0:00:10]} f4
{[%emt 0:02:06][%cal Yf5f4,Yf4f3]} 76. Rh1 {[%emt 0:01:17]} Re3+ {[%emt 0:00:
13]} 77. Kc2 {[%emt 0:00:27]} f3 {[%emt 0:00:36]} 78. Kd2 {[%emt 0:01:10]} Re4
{[%emt 0:00:00]} 79. Rh3 {[%emt 0:03:09]} Rxd4+ {[%emt 0:00:45]} 80. Ke1 {
[%emt 0:00:33]} Rxb4 {[%emt 0:00:12] aiming for ...Rb1+.} 81. Rxf3 {[%emt 0:00:
03]} Kxg5 {[%emt 0:00:07]} 82. Rf7 {[%emt 0:00:30]} Rb5 {[%emt 0:00:13][%csl
Ya5,Yc5] Weighted Error Value: White=0.17 (very precise) /Black=0.14 (very
precise)} 0-1

[Event "44th Chess Olympiad Open 2022"]
[Site "Chennai"]
[Date "2022.08.06"]
[Round "8.54"]
[White "Amdouni, Zoubaier"]
[Black "Khoa, Goodwill"]
[Result "1-0"]
[WhiteElo "2224"]
[BlackElo "1850"]
[Annotator "RC"]
[PlyCount "79"]
[EventDate "2022.??.??"]
[TimeControl "60"]

1. e4 {[%emt 0:00:03]} c5 {[%emt 0:00:12]} 2. Nf3 {[%emt 0:00:04]} e6 {[%emt 0:
00:00]} 3. d4 {[%emt 0:00:26]} cxd4 {[%emt 0:00:10]} 4. Nxd4 {[%emt 0:00:02]}
Nc6 {[%emt 0:01:04]} 5. Nc3 {[%emt 0:00:43]} a6 {[%emt 0:00:07]} 6. Nxc6 {
[%emt 0:01:00]} bxc6 {[%emt 0:00:18]} 7. Bd3 {[%emt 0:02:13]} Qc7 {[%emt 0:00:
00]} 8. O-O {[%emt 0:04:07]} g6 {[%emt 0:07:08]} 9. Be3 {[%emt 0:04:18]} Rb8 {
[%emt 0:04:24]} 10. Na4 {[%emt 0:06:19]} Bg7 {[%emt 0:01:14]} 11. f4 {[%emt 0:
00:00]} Nf6 {[%emt 0:02:36]} 12. c4 {[%emt 0:04:26]} O-O {[%emt 0:03:10]} 13.
e5 {[%emt 0:05:22]} Ne8 {[%emt 0:01:13]} 14. Bc5 {[%emt 0:00:43]} d6 {[%emt 0:
00:00]} 15. exd6 {[%emt 0:02:18]} Nxd6 {[%emt 0:00:14]} 16. Bxg6 {[%emt 0:00:
00]} Rd8 {[%emt 0:01:57]} 17. Bd3 {[%emt 0:03:45]} Ne4 {[%emt 0:13:35]} 18. Be3
{[%emt 0:03:07]} Nf6 {[%emt 0:10:11]} 19. Qc2 {[%emt 0:04:23]} Qa5 {[%emt 0:00:
00]} 20. Rad1 {[%emt 0:01:46]} Kh8 {[%emt 0:05:40]} 21. Be2 {[%emt 0:09:39]}
Bd7 {[%emt 0:05:48]} 22. b3 {[%emt 0:09:08]} Qc7 {[%emt 0:08:35]} 23. Nc5 {
[%emt 0:02:40]} Ra8 {[%emt 0:01:09]} 24. Bf3 {[%emt 0:05:32]} Be8 {[%emt 0:00:
00]} 25. Rxd8 {[%emt 0:02:24]} Qxd8 {[%emt 0:00:55]} 26. Rd1 {[%emt 0:00:20]}
Qc7 {[%emt 0:00:59]} 27. Qd2 {[%emt 0:01:10]} a5 {[%emt 0:01:26]} 28. Na4 {
[%emt 0:12:09]} Nd7 {[%emt 0:08:12]} 29. Qd6 {[%emt 0:00:27]} Qxd6 {[%emt 0:00:
00]} 30. Rxd6 {[%emt 0:00:01]} Bf8 {[%emt 0:00:48]} 31. Rxc6 {[%emt 0:00:50]}
e5 {[%emt 0:01:10]} 32. Bd5 {[%emt 0:04:37]} Rd8 {[%emt 0:01:21]} 33. Ra6 {
[%emt 0:01:05]} Bb4 {[%emt 0:01:36]} 34. fxe5 {[%emt 0:00:30]} Kg7 {[%emt 0:00:
00]} 35. Bd4 {[%emt 0:01:29]} Nf8 {[%emt 0:00:14]} 36. e6+ {[%emt 0:00:36]} f6
{[%emt 0:00:11]} 37. Nc5 {[%emt 0:00:12]} Ng6 {[%emt 0:01:13]} 38. Ra7+ {
[%emt 0:01:18]} Ne7 {[%emt 0:00:28]} 39. Rxe7+ {[%emt 0:00:34]} Kh6 {[%emt 0:
00:00]} 40. Ra7 {[%emt 0:00:02]} 1-0

[Event "44th Chess Olympiad Open 2022"]
[Site "Chennai"]
[Date "2022.08.06"]
[Round "8.54"]
[White "Eichab, Charles"]
[Black "Boudriga, Mohamed Ali"]
[Result "0-1"]
[WhiteElo "2048"]
[BlackElo "2308"]
[Annotator "RC"]
[PlyCount "99"]
[EventDate "2022.??.??"]
[TimeControl "60"]

1. b3 {[%emt 0:00:14]} d5 {[%emt 0:02:39]} 2. Bb2 {[%emt 0:00:16]} Bg4 {
[%emt 0:00:03]} 3. g3 {[%emt 0:03:20]} Nc6 {[%emt 0:06:14]} 4. d4 {[%emt 0:00:
00]} h5 {[%emt 0:21:24]} 5. h3 {[%emt 0:01:25]} Bf5 {[%emt 0:00:08]} 6. Bg2 {
[%emt 0:01:20]} Qd7 {[%emt 0:04:42]} 7. c4 {[%emt 0:02:51]} e6 {[%emt 0:02:41]}
8. a3 {[%emt 0:02:34]} O-O-O {[%emt 0:08:47]} 9. c5 {[%emt 0:17:25]} e5 {
[%emt 0:00:30]} 10. b4 {[%emt 0:00:11]} Nxd4 {[%emt 0:00:08]} 11. Bxd4 {
[%emt 0:02:02]} exd4 {[%emt 0:00:02]} 12. Qxd4 {[%emt 0:01:10]} Be7 {[%emt 0:
00:00]} 13. Nc3 {[%emt 0:14:46]} Bf6 {[%emt 0:00:30]} 14. Qd2 {[%emt 0:00:14]}
Ne7 {[%emt 0:00:54]} 15. Rd1 {[%emt 0:07:48]} Kb8 {[%emt 0:05:47]} 16. Nf3 {
[%emt 0:01:55]} d4 {[%emt 0:00:39]} 17. Na2 {[%emt 0:05:47]} Qa4 {[%emt 0:00:
00]} 18. O-O {[%emt 0:03:57]} d3 {[%emt 0:04:20]} 19. e3 {[%emt 0:07:50]} Nc6 {
[%emt 0:14:16]} 20. b5 {[%emt 0:03:42]} Na5 {[%emt 0:01:00]} 21. Qb4 {[%emt 0:
00:00]} Qxb4 {[%emt 0:00:12]} 22. Nxb4 {[%emt 0:04:11]} Nc4 {[%emt 0:02:56]}
23. c6 {[%emt 0:04:40]} b6 {[%emt 0:00:06]} 24. Nd2 {[%emt 0:01:52]} Nxd2 {
[%emt 0:00:46]} 25. Rxd2 {[%emt 0:00:15]} Bc3 {[%emt 0:00:18]} 26. Rdd1 {
[%emt 0:01:34]} d2 {[%emt 0:00:35]} 27. e4 {[%emt 0:00:56]} Bxb4 {[%emt 0:00:
00]} 28. exf5 {[%emt 0:01:09]} Bxa3 {[%emt 0:00:04]} 29. Be4 {[%emt 0:01:05]}
Rhe8 {[%emt 0:02:40]} 30. Bf3 {[%emt 0:01:11]} Re5 {[%emt 0:00:19]} 31. Rb1 {
[%emt 0:00:37]} Rxf5 {[%emt 0:00:43]} 32. Kg2 {[%emt 0:00:35]} Bc5 {[%emt 0:00:
00]} 33. Bd1 {[%emt 0:00:25]} g6 {[%emt 0:01:49]} 34. f4 {[%emt 0:00:35]} Rf6 {
[%emt 0:01:40]} 35. Bb3 {[%emt 0:00:25]} Re8 {[%emt 0:00:48]} 36. Rbd1 {
[%emt 0:00:29]} Re2+ {[%emt 0:00:26]} 37. Kh1 {[%emt 0:00:36]} Bb4 {[%emt 0:00:
00]} 38. Rb1 {[%emt 0:00:31]} Bd6 {[%emt 0:01:00]} 39. Bc4 {[%emt 0:00:30]} Re4
{[%emt 0:00:40]} 40. Bb3 {[%emt 0:00:32]} a5 {[%emt 0:01:10]} 41. Kg2 {[%emt 0:
00:00]} Bc5 {[%emt 0:02:55]} 42. Bc2 {[%emt 0:02:40]} Re2+ {[%emt 0:04:18]} 43.
Kh1 {[%emt 0:02:33]} Rfe6 {[%emt 0:01:03]} 44. Bd1 {[%emt 0:10:32]} Re1 {
[%emt 0:00:53]} 45. Kg2 {[%emt 0:04:17]} Rxf1 {[%emt 0:00:17]} 46. Kxf1 {
[%emt 0:00:27]} Re1+ {[%emt 0:00:07]} 47. Kg2 {[%emt 0:00:28]} f5 {[%emt 0:00:
00]} 48. Kf3 {[%emt 0:01:09]} a4 {[%emt 0:00:47]} 49. Ra1 {[%emt 0:05:04]} a3 {
[%emt 0:00:13]} 50. Be2 {[%emt 0:00:29]} 0-1

[Event "44th Chess Olympiad Open 2022"]
[Site "Chennai"]
[Date "2022.08.06"]
[Round "8.54"]
[White "Ndahangwapo, Heskiel"]
[Black "Meddeb, Anis"]
[Result "0-1"]
[WhiteElo "1904"]
[BlackElo "2121"]
[Annotator "NA RC"]
[PlyCount "84"]
[EventDate "2022.??.??"]
[TimeControl "60"]

1. d4 {[%emt 0:00:33]} d5 {[%emt 0:00:06]} 2. c4 {[%emt 0:00:06]} e6 {[%emt 0:
00:00]} 3. Nf3 {[%emt 0:00:04]} Nf6 {[%emt 0:00:05]} 4. g3 {[%emt 0:00:06]} c6
{[%emt 0:00:39]} 5. Bg2 {[%emt 0:00:04]} Bd6 {[%emt 0:00:06]} 6. O-O {[%emt 0:
00:00]} O-O {[%emt 0:00:08]} 7. Qc2 {[%emt 0:00:07]} Nbd7 {[%emt 0:00:13]} 8.
Nbd2 {[%emt 0:01:00]} Re8 {[%emt 0:10:47]} 9. Rd1 {[%emt 0:05:29]} Qe7 {
[%emt 0:06:58]} 10. e4 {[%emt 0:02:46]} dxe4 {[%emt 0:01:20]} 11. Nxe4 {
[%emt 0:00:11]} Nxe4 {[%emt 0:02:57]} 12. Qxe4 {[%emt 0:00:06]} c5 {[%emt 0:00:
00]} 13. Bg5 {[%emt 0:01:49]} f6 {[%emt 0:01:06]} 14. Be3 {[%emt 0:00:14]} Rb8
{[%emt 0:03:29]} 15. d5 {[%emt 0:04:15]} e5 {[%emt 0:05:25]} 16. a4 {[%emt 0:
00:00]} b6 {[%emt 0:01:55]} 17. Bh3 {[%emt 0:00:26]} Nf8 {[%emt 0:05:28]} 18.
Bxc8 {[%emt 0:00:18]} Rexc8 {[%emt 0:00:23]} 19. h4 {[%emt 0:00:20]} Qd7 {
[%emt 0:07:01]} 20. Bd2 {[%emt 0:01:44]} Ng6 {[%emt 0:09:02]} 21. h5 {[%emt 0:
00:00]} Ne7 {[%emt 0:00:13]} 22. Kg2 {[%emt 0:02:21]} Qf5 {[%emt 0:02:27]} 23.
Qh4 {[%emt 0:09:39]} a6 {[%emt 0:07:30]} 24. g4 {[%emt 0:02:37]} Qd7 {[%emt 0:
00:00]} 25. g5 {[%emt 0:07:34]} Nf5 {[%emt 0:05:48]} 26. Qh3 {[%emt 0:00:07]}
e4 {[%emt 0:04:34]} 27. Nh2 {[%emt 0:01:31]} Bxh2 {[%emt 0:00:17]} 28. Qxh2 {
[%emt 0:00:48]} fxg5 {[%emt 0:01:26]} 29. Bxg5 {[%emt 0:00:43]} Rf8 {[%emt 0:
00:00]} 30. Ra3 {[%emt 0:03:47]} e3 {[%emt 0:01:56]} 31. Bxe3 {[%emt 0:00:30]}
Nxe3+ {[%emt 0:00:09]} 32. Rxe3 {[%emt 0:00:08]} Qg4+ {[%emt 0:00:07]} 33. Qg3
{[%emt 0:00:26]} Qxd1 {[%emt 0:00:38]} 34. h6 {[%emt 0:00:54]} Rb7 {[%emt 0:00:
00]} 35. d6 {[%emt 0:00:36]} Rbf7 {[%emt 0:00:20]} 36. Re7 {[%emt 0:06:35]}
Rxf2+ {[%emt 0:00:27]} 37. Qxf2 {[%emt 0:01:13]} Rxf2+ {[%emt 0:00:10]} 38.
Kxf2 {[%emt 0:00:04]} Qxd6 {[%emt 0:00:30]} 39. Rxg7+ {[%emt 0:00:07]} Kf8 {
[%emt 0:00:50]} 40. Ra7 {[%emt 0:00:19]} Qf4+ {[%emt 0:00:16]} 41. Kg1 {
[%emt 0:30:28]} Qxc4 {[%emt 0:30:21]} 42. Rxh7 {[%emt 0:00:11]} Qc1+ {[%emt 0:
00:00]} 0-1